[Event "Late-Titled-Tuesday-Blitz-November-28-2023"]
[Site "Chess.com"]
[Date "2023.11.28"]
[Round "3"]
[White "Jospem"]
[Black "Andrei_Skvortsov"]
[Result "0-1"]
[WhiteElo "3049"]
[BlackElo "2752"]
[TimeControl "180+1"]
[EndTime "14:26:59 PST"]
[Termination "Andrei_Skvortsov won by resignation"]

1. e4 {[%clk 0:03:00.9]} 1... d5 {[%clk 0:02:53.4]} 2. exd5 {[%clk 0:03:00.7]}
2... Qxd5 {[%clk 0:02:54.3]} 3. Nc3 {[%clk 0:03:01.2]} 3... Qe5+ {[%clk
0:02:54.7]} 4. Be2 {[%clk 0:03:01.1]} 4... Bg4 {[%clk 0:02:55.1]} 5. d4 {[%clk
0:03:01.4]} 5... Bxe2 {[%clk 0:02:55.2]} 6. Ngxe2 {[%clk 0:03:01.9]} 6... Qa5
{[%clk 0:02:55.6]} 7. b4 {[%clk 0:02:56.2]} 7... Qxb4 {[%clk 0:02:54.5]} 8. Rb1
{[%clk 0:02:55.6]} 8... Qc4 {[%clk 0:02:53.5]} 9. O-O {[%clk 0:02:43.3]} 9...
Nf6 {[%clk 0:02:51.7]} 10. Rxb7 {[%clk 0:02:41.2]} 10... e6 {[%clk 0:02:49]} 11.
Bf4 {[%clk 0:02:01.8]} 11... Na6 {[%clk 0:02:43.5]} 12. Qd3 {[%clk 0:01:42.5]}
12... Qxd3 {[%clk 0:02:34.5]} 13. cxd3 {[%clk 0:01:43.4]} 13... Kd7 {[%clk
0:02:29.6]} 14. Rc1 {[%clk 0:01:39.2]} 14... Ba3 {[%clk 0:01:56.5]} 15. Rcb1
{[%clk 0:01:38.3]} 15... Rhb8 {[%clk 0:01:30]} 16. R7b3 {[%clk 0:01:38.1]} 16...
Bd6 {[%clk 0:01:20.4]} 17. Be5 {[%clk 0:01:33.3]} 17... Rxb3 {[%clk 0:01:14.6]}
18. axb3 {[%clk 0:01:34.2]} 18... Nb4 {[%clk 0:01:06.2]} 19. Rd1 {[%clk
0:01:27.7]} 19... Rb8 {[%clk 0:01:04.7]} 20. Ne4 {[%clk 0:01:17]} 20... Nxe4
{[%clk 0:00:54.6]} 21. dxe4 {[%clk 0:01:17.9]} 21... f6 {[%clk 0:00:28.8]} 22.
Bxd6 {[%clk 0:01:17.2]} 22... cxd6 {[%clk 0:00:28.2]} 23. Ra1 {[%clk 0:01:07.8]}
23... Rb7 {[%clk 0:00:26.2]} 24. g3 {[%clk 0:01:08.2]} 24... d5 {[%clk
0:00:21.6]} 25. Nc3 {[%clk 0:00:50.6]} 25... Nc6 {[%clk 0:00:18.5]} 26. exd5
{[%clk 0:00:50.2]} 26... Nxd4 {[%clk 0:00:19]} 27. dxe6+ {[%clk 0:00:50.2]}
27... Kxe6 {[%clk 0:00:19.1]} 28. b4 {[%clk 0:00:43.9]} 28... Nc2 {[%clk
0:00:17]} 29. Ra6+ {[%clk 0:00:42.9]} 29... Kf7 {[%clk 0:00:16]} 30. b5 {[%clk
0:00:43.4]} 30... Nd4 {[%clk 0:00:15.6]} 31. Ra5 {[%clk 0:00:43.9]} 31... Ke6
{[%clk 0:00:15.4]} 32. Kg2 {[%clk 0:00:42.8]} 32... Kd6 {[%clk 0:00:14.7]} 33.
Ne4+ {[%clk 0:00:38.2]} 33... Kc7 {[%clk 0:00:11.1]} 34. Nc3 {[%clk 0:00:38.5]}
34... Kb6 {[%clk 0:00:10.4]} 35. Ra6+ {[%clk 0:00:38.4]} 35... Kc5 {[%clk
0:00:10.6]} 36. Rc6+ {[%clk 0:00:38.7]} 36... Nxc6 {[%clk 0:00:10.2]} 37. bxc6
{[%clk 0:00:37.5]} 37... Kxc6 {[%clk 0:00:11.1]} 38. Ne2 {[%clk 0:00:36.4]}
38... a5 {[%clk 0:00:11.4]} 39. Nd4+ {[%clk 0:00:36.6]} 39... Kc5 {[%clk
0:00:11.8]} 40. Ne6+ {[%clk 0:00:36.9]} 40... Kc4 {[%clk 0:00:11.4]} 0-1

[Event "Late-Titled-Tuesday-Blitz-November-28-2023"]
[Site "Chess.com"]
[Date "2023.11.28"]
[Round "3"]
[White "Goryachkina"]
[Black "Hrant_ChessMood"]
[Result "0-1"]
[WhiteElo "2642"]
[BlackElo "2943"]
[TimeControl "180+1"]
[EndTime "14:27:04 PST"]
[Termination "Hrant_ChessMood won on time"]

1. e4 {[%clk 0:02:59.8]} 1... e5 {[%clk 0:02:56.9]} 2. Nf3 {[%clk 0:02:59.6]}
2... Nc6 {[%clk 0:02:57.6]} 3. Nc3 {[%clk 0:02:59.6]} 3... Nf6 {[%clk
0:02:56.7]} 4. d4 {[%clk 0:02:59.7]} 4... exd4 {[%clk 0:02:57.6]} 5. Nxd4 {[%clk
0:03:00.3]} 5... Bc5 {[%clk 0:02:58.3]} 6. Be3 {[%clk 0:02:52.8]} 6... Bb6
{[%clk 0:02:58.3]} 7. Qd2 {[%clk 0:02:42.3]} 7... Kf8 {[%clk 0:02:53.4]} 8.
O-O-O {[%clk 0:02:29.9]} 8... d6 {[%clk 0:02:51]} 9. Nxc6 {[%clk 0:02:24.8]}
9... bxc6 {[%clk 0:02:49.6]} 10. e5 {[%clk 0:02:24.7]} 10... Ne8 {[%clk
0:02:43.8]} 11. f4 {[%clk 0:02:13.4]} 11... Bf5 {[%clk 0:02:39.1]} 12. Bd3
{[%clk 0:02:10]} 12... Qd7 {[%clk 0:02:33.9]} 13. h3 {[%clk 0:01:59.8]} 13... h5
{[%clk 0:01:50.9]} 14. Bxf5 {[%clk 0:01:43.4]} 14... Qxf5 {[%clk 0:01:51.8]} 15.
g4 {[%clk 0:01:43.5]} 15... Qe6 {[%clk 0:01:52.2]} 16. Ne4 {[%clk 0:01:36.5]}
16... Qxa2 {[%clk 0:01:48.5]} 17. Nc3 {[%clk 0:01:12.5]} 17... Qa1+ {[%clk
0:01:48.2]} 18. Nb1 {[%clk 0:01:12.8]} 18... Rb8 {[%clk 0:01:48.8]} 19. Bd4
{[%clk 0:01:05.8]} 19... Bxd4 {[%clk 0:01:32]} 20. Qxd4 {[%clk 0:01:05.7]} 20...
c5 {[%clk 0:01:32.7]} 21. Qc3 {[%clk 0:01:05.4]} 21... Qa4 {[%clk 0:01:32.8]}
22. Rhf1 {[%clk 0:00:41.3]} 22... hxg4 {[%clk 0:01:24.5]} 23. hxg4 {[%clk
0:00:41.4]} 23... Rh2 {[%clk 0:01:25]} 24. Nd2 {[%clk 0:00:30.7]} 24... Rb4
{[%clk 0:01:16.8]} 25. f5 {[%clk 0:00:22.3]} 25... Rxd2 {[%clk 0:00:57.1]} 26.
Kxd2 {[%clk 0:00:17.7]} 26... Rd4+ {[%clk 0:00:57.3]} 27. Ke2 {[%clk 0:00:14.8]}
27... Re4+ {[%clk 0:00:57.9]} 28. Kd2 {[%clk 0:00:14.5]} 28... Rxe5 {[%clk
0:00:49.8]} 29. Rde1 {[%clk 0:00:13.5]} 29... Rd5+ {[%clk 0:00:42.3]} 30. Ke3
{[%clk 0:00:08.7]} 30... Nf6 {[%clk 0:00:40.5]} 31. Rh1 {[%clk 0:00:03.9]} 31...
Qe4+ {[%clk 0:00:32.5]} 32. Kf2 {[%clk 0:00:03.7]} 32... Qf4+ {[%clk 0:00:32.9]}
33. Kg2 {[%clk 0:00:02.9]} 33... Rd2+ {[%clk 0:00:32.3]} 0-1

[Event "Late-Titled-Tuesday-Blitz-November-28-2023"]
[Site "Chess.com"]
[Date "2023.11.28"]
[Round "3"]
[White "NateSolon"]
[Black "Mikhal867"]
[Result "1-0"]
[WhiteElo "2670"]
[BlackElo "2428"]
[TimeControl "180+1"]
[EndTime "14:27:08 PST"]
[Termination "NateSolon won by resignation"]

1. d4 {[%clk 0:03:00.9]} 1... g6 {[%clk 0:02:24.1]} 2. e4 {[%clk 0:02:59.5]}
2... d6 {[%clk 0:02:23.3]} 3. Nf3 {[%clk 0:02:58.7]} 3... Bg7 {[%clk 0:02:22.8]}
4. Bc4 {[%clk 0:02:57.8]} 4... a6 {[%clk 0:02:21.1]} 5. O-O {[%clk 0:02:55.1]}
5... b5 {[%clk 0:02:17.5]} 6. Bb3 {[%clk 0:02:55.3]} 6... Nc6 {[%clk 0:02:02.3]}
7. c3 {[%clk 0:02:52.5]} 7... Na5 {[%clk 0:01:59.7]} 8. Bc2 {[%clk 0:02:49]}
8... Bb7 {[%clk 0:01:59.9]} 9. Qe2 {[%clk 0:02:42.4]} 9... Nf6 {[%clk
0:01:57.2]} 10. e5 {[%clk 0:02:39.9]} 10... Nd5 {[%clk 0:01:56.8]} 11. e6 {[%clk
0:02:34.1]} 11... fxe6 {[%clk 0:01:54]} 12. Ng5 {[%clk 0:02:34.2]} 12... Bc8
{[%clk 0:01:40.9]} 13. Nxh7 {[%clk 0:02:23.5]} 13... Rxh7 {[%clk 0:01:21.9]} 14.
Bxg6+ {[%clk 0:02:22.7]} 14... Kd7 {[%clk 0:01:21.5]} 15. Bxh7 {[%clk
0:02:21.9]} 15... Qh8 {[%clk 0:01:21.5]} 16. Be4 {[%clk 0:02:13.6]} 16... Bb7
{[%clk 0:01:18.9]} 17. a4 {[%clk 0:02:08.9]} 17... Bc6 {[%clk 0:01:10.8]} 18.
Nd2 {[%clk 0:01:52.6]} 18... bxa4 {[%clk 0:01:06.3]} 19. Re1 {[%clk 0:01:26.4]}
19... Nf4 {[%clk 0:00:49.7]} 20. Bxc6+ {[%clk 0:01:22.2]} 20... Nxc6 {[%clk
0:00:46.2]} 21. Qe4 {[%clk 0:01:20.9]} 21... Rf8 {[%clk 0:00:38.6]} 22. Nf3
{[%clk 0:00:57.5]} 22... d5 {[%clk 0:00:36.7]} 23. Qc2 {[%clk 0:00:38.3]} 23...
Qh5 {[%clk 0:00:31.8]} 24. Bxf4 {[%clk 0:00:36]} 24... Rxf4 {[%clk 0:00:31.1]}
25. Qe2 {[%clk 0:00:36]} 25... Qf5 {[%clk 0:00:23.6]} 26. Rxa4 {[%clk
0:00:34.4]} 26... a5 {[%clk 0:00:23.5]} 27. Raa1 {[%clk 0:00:31.2]} 27... Rg4
{[%clk 0:00:23.7]} 28. g3 {[%clk 0:00:30.5]} 28... Re4 {[%clk 0:00:22.3]} 29.
Qd3 {[%clk 0:00:30]} 29... Bh6 {[%clk 0:00:19.7]} 30. Kg2 {[%clk 0:00:24.6]}
30... Qg4 {[%clk 0:00:19]} 31. Qb5 {[%clk 0:00:23.5]} 31... a4 {[%clk
0:00:12.1]} 32. Ne5+ {[%clk 0:00:22.9]} 32... Rxe5 {[%clk 0:00:11.6]} 33. dxe5
{[%clk 0:00:23]} 33... d4 {[%clk 0:00:10.4]} 34. Rxa4 {[%clk 0:00:21]} 34... Bd2
{[%clk 0:00:09.7]} 35. Rxd4+ {[%clk 0:00:20.2]} 35... Qxd4 {[%clk 0:00:08.9]}
36. cxd4 {[%clk 0:00:21.1]} 36... Bxe1 {[%clk 0:00:08.8]} 37. d5 {[%clk
0:00:21.8]} 37... exd5 {[%clk 0:00:08.3]} 38. Qxd5+ {[%clk 0:00:22.7]} 1-0

[Event "Late-Titled-Tuesday-Blitz-November-28-2023"]
[Site "Chess.com"]
[Date "2023.11.28"]
[Round "3"]
[White "cthake"]
[Black "GMthekingindian"]
[Result "0-1"]
[WhiteElo "1906"]
[BlackElo "2322"]
[TimeControl "180+1"]
[EndTime "14:27:10 PST"]
[Termination "GMthekingindian won by resignation"]

1. c4 {[%clk 0:03:00.9]} 1... e5 {[%clk 0:02:59.8]} 2. Nc3 {[%clk 0:03:00.8]}
2... Nc6 {[%clk 0:03:00.1]} 3. g3 {[%clk 0:02:58.2]} 3... Nf6 {[%clk 0:03:00]}
4. Bg2 {[%clk 0:02:56.6]} 4... g6 {[%clk 0:03:00.6]} 5. d3 {[%clk 0:02:56.5]}
5... Bg7 {[%clk 0:03:01.1]} 6. e4 {[%clk 0:02:56.7]} 6... O-O {[%clk 0:03:01]}
7. Nge2 {[%clk 0:02:56.7]} 7... d6 {[%clk 0:03:01.6]} 8. O-O {[%clk 0:02:56.4]}
8... a6 {[%clk 0:03:00.7]} 9. h3 {[%clk 0:02:54.5]} 9... Rb8 {[%clk 0:02:58.9]}
10. a4 {[%clk 0:02:53.1]} 10... Nb4 {[%clk 0:02:51.6]} 11. Be3 {[%clk
0:02:50.3]} 11... c5 {[%clk 0:02:51.6]} 12. Qd2 {[%clk 0:02:34.1]} 12... Re8
{[%clk 0:02:48.5]} 13. f4 {[%clk 0:02:30.5]} 13... Bd7 {[%clk 0:02:39.5]} 14.
Rf2 {[%clk 0:02:27.3]} 14... b5 {[%clk 0:02:38.3]} 15. axb5 {[%clk 0:02:26.1]}
15... axb5 {[%clk 0:02:38.7]} 16. cxb5 {[%clk 0:02:20.6]} 16... Bxb5 {[%clk
0:02:38.5]} 17. Nxb5 {[%clk 0:02:18.8]} 17... Rxb5 {[%clk 0:02:39.4]} 18. Raf1
{[%clk 0:02:17.9]} 18... d5 {[%clk 0:01:58.9]} 19. Nc3 {[%clk 0:02:16.3]} 19...
Ra5 {[%clk 0:01:51.3]} 20. Nxd5 {[%clk 0:01:42.8]} 20... Nfxd5 {[%clk
0:01:46.1]} 21. exd5 {[%clk 0:01:42.9]} 21... exf4 {[%clk 0:01:43.4]} 22. Rxf4
{[%clk 0:01:36.7]} 22... f5 {[%clk 0:01:13.6]} 23. Rc4 {[%clk 0:01:27.5]} 23...
Rb5 {[%clk 0:00:35.9]} 24. Rfc1 {[%clk 0:01:25.3]} 24... Nxd5 {[%clk 0:00:28.8]}
25. Bxc5 {[%clk 0:01:22.3]} 25... Rxc5 {[%clk 0:00:21.5]} 26. Kh2 {[%clk
0:01:00.8]} 26... Rxc4 {[%clk 0:00:20]} 27. dxc4 {[%clk 0:01:00]} 27... Ne3
{[%clk 0:00:17.5]} 28. Bd5+ {[%clk 0:00:58.8]} 28... Nxd5 {[%clk 0:00:16.8]} 29.
cxd5 {[%clk 0:00:58.9]} 29... Qd6 {[%clk 0:00:15.2]} 30. Rc6 {[%clk 0:00:54.6]}
30... Qe5 {[%clk 0:00:15.3]} 31. Qg2 {[%clk 0:00:48.4]} 31... Qxb2 {[%clk
0:00:14.1]} 32. Qxb2 {[%clk 0:00:44]} 32... Bxb2 {[%clk 0:00:15]} 33. h4 {[%clk
0:00:42.9]} 33... Rd8 {[%clk 0:00:14.2]} 34. Rc5 {[%clk 0:00:39.2]} 34... Be5
{[%clk 0:00:13.9]} 35. Kh3 {[%clk 0:00:38.6]} 35... Bd6 {[%clk 0:00:14.2]} 36.
Rb5 {[%clk 0:00:38.1]} 36... Kf7 {[%clk 0:00:14.6]} 37. g4 {[%clk 0:00:37.7]}
37... f4 {[%clk 0:00:14.5]} 38. Kg2 {[%clk 0:00:38.1]} 38... Kf6 {[%clk
0:00:14.9]} 39. Kf3 {[%clk 0:00:38.5]} 39... Ke5 {[%clk 0:00:15.3]} 40. h5
{[%clk 0:00:37.2]} 40... Rb8 {[%clk 0:00:15.2]} 41. Ra5 {[%clk 0:00:34.2]} 41...
Rb3+ {[%clk 0:00:15.2]} 42. Kg2 {[%clk 0:00:34.4]} 42... f3+ {[%clk 0:00:15.3]}
43. Kf2 {[%clk 0:00:34.3]} 43... Ke4 {[%clk 0:00:15.6]} 44. Ra4+ {[%clk
0:00:33.5]} 44... Rb4 {[%clk 0:00:15.3]} 45. Ra7 {[%clk 0:00:32.8]} 45... Bc5+
{[%clk 0:00:15.5]} 0-1

[Event "Late-Titled-Tuesday-Blitz-November-28-2023"]
[Site "Chess.com"]
[Date "2023.11.28"]
[Round "3"]
[White "zajka-molotok"]
[Black "Matthew_Clarke"]
[Result "1-0"]
[WhiteElo "2534"]
[BlackElo "2259"]
[TimeControl "180+1"]
[EndTime "14:27:15 PST"]
[Termination "zajka-molotok won by resignation"]

1. g3 {[%clk 0:03:00.9]} 1... e5 {[%clk 0:02:58.1]} 2. Bg2 {[%clk 0:02:58.5]}
2... d5 {[%clk 0:02:58.5]} 3. c4 {[%clk 0:02:49.7]} 3... d4 {[%clk 0:02:58.2]}
4. d3 {[%clk 0:02:44.4]} 4... Nf6 {[%clk 0:02:54.7]} 5. Nf3 {[%clk 0:02:42.5]}
5... Nc6 {[%clk 0:02:54.9]} 6. O-O {[%clk 0:02:38.1]} 6... Be7 {[%clk
0:02:51.3]} 7. Na3 {[%clk 0:02:31.4]} 7... O-O {[%clk 0:02:48.2]} 8. Nc2 {[%clk
0:02:31.1]} 8... a5 {[%clk 0:02:48.4]} 9. Rb1 {[%clk 0:02:27.4]} 9... Nd7 {[%clk
0:02:39.4]} 10. b3 {[%clk 0:02:19.9]} 10... f5 {[%clk 0:01:41.7]} 11. a3 {[%clk
0:02:18.5]} 11... Bf6 {[%clk 0:01:33]} 12. b4 {[%clk 0:02:07.6]} 12... Qe7
{[%clk 0:01:18]} 13. b5 {[%clk 0:02:04.4]} 13... Nd8 {[%clk 0:01:17.9]} 14. a4
{[%clk 0:01:55.1]} 14... Re8 {[%clk 0:00:45.6]} 15. Ba3 {[%clk 0:01:51.8]} 15...
Nc5 {[%clk 0:00:44.8]} 16. Nd2 {[%clk 0:01:47.5]} 16... Qf8 {[%clk 0:00:33.9]}
17. e3 {[%clk 0:01:39.5]} 17... Nde6 {[%clk 0:00:22.7]} 18. exd4 {[%clk
0:01:27.8]} 18... exd4 {[%clk 0:00:23.6]} 19. Nb3 {[%clk 0:01:22.7]} 19... Rd8
{[%clk 0:00:14.9]} 20. Bd5 {[%clk 0:01:19.8]} 20... Be7 {[%clk 0:00:10.1]} 21.
Nbxd4 {[%clk 0:01:12.8]} 21... Kh8 {[%clk 0:00:09.7]} 22. Re1 {[%clk 0:01:00.4]}
22... Nxd4 {[%clk 0:00:08.4]} 23. Nxd4 {[%clk 0:01:01.3]} 23... Bd7 {[%clk
0:00:01.6]} 24. Nb3 {[%clk 0:00:41.9]} 24... Bd6 {[%clk 0:00:01.1]} 25. Bxc5
{[%clk 0:00:27]} 25... Bxc5 {[%clk 0:00:02]} 26. Bxb7 {[%clk 0:00:27.2]} 26...
Rab8 {[%clk 0:00:01.9]} 27. Bg2 {[%clk 0:00:24.4]} 27... Ba7 {[%clk 0:00:01.8]}
28. d4 {[%clk 0:00:22.5]} 28... f4 {[%clk 0:00:02.2]} 29. c5 {[%clk 0:00:19.8]}
29... fxg3 {[%clk 0:00:01.7]} 30. hxg3 {[%clk 0:00:19.7]} 30... Bf5 {[%clk
0:00:02.1]} 31. Rb2 {[%clk 0:00:17.1]} 31... c6 {[%clk 0:00:01.5]} 32. b6 {[%clk
0:00:16.3]} 1-0

[Event "Late-Titled-Tuesday-Blitz-November-28-2023"]
[Site "Chess.com"]
[Date "2023.11.28"]
[Round "3"]
[White "ChessSwole"]
[Black "OparinGrigoriy"]
[Result "1/2-1/2"]
[WhiteElo "2683"]
[BlackElo "2999"]
[TimeControl "180+1"]
[EndTime "14:27:16 PST"]
[Termination "Game drawn by repetition"]

1. e4 {[%clk 0:03:00.9]} 1... c6 {[%clk 0:02:49.3]} 2. Nc3 {[%clk 0:02:56.9]}
2... d5 {[%clk 0:02:50.2]} 3. Nf3 {[%clk 0:02:56.7]} 3... Bg4 {[%clk 0:02:49.4]}
4. h3 {[%clk 0:02:56.2]} 4... Bxf3 {[%clk 0:02:49.3]} 5. Qxf3 {[%clk 0:02:57.1]}
5... e6 {[%clk 0:02:49.8]} 6. d3 {[%clk 0:02:53.1]} 6... Nd7 {[%clk 0:02:48]} 7.
Bd2 {[%clk 0:02:52.4]} 7... Qb6 {[%clk 0:02:46.4]} 8. O-O-O {[%clk 0:02:51.7]}
8... d4 {[%clk 0:02:35.8]} 9. Nb1 {[%clk 0:02:47]} 9... c5 {[%clk 0:02:36]} 10.
Na3 {[%clk 0:02:41.1]} 10... Ne7 {[%clk 0:02:35.3]} 11. g4 {[%clk 0:02:39.2]}
11... Nc6 {[%clk 0:02:35.1]} 12. Qg3 {[%clk 0:02:33.5]} 12... e5 {[%clk
0:02:33.6]} 13. f4 {[%clk 0:02:32.6]} 13... Qc7 {[%clk 0:02:31.2]} 14. Nc4
{[%clk 0:02:24.4]} 14... b5 {[%clk 0:02:26.3]} 15. Nxe5 {[%clk 0:02:24.2]} 15...
Ncxe5 {[%clk 0:02:26.7]} 16. fxe5 {[%clk 0:02:24.7]} 16... Nxe5 {[%clk
0:02:27.6]} 17. Kb1 {[%clk 0:02:17.5]} 17... Bd6 {[%clk 0:02:28]} 18. Qf2 {[%clk
0:02:13.7]} 18... a5 {[%clk 0:02:19.5]} 19. g5 {[%clk 0:02:11.1]} 19... a4
{[%clk 0:02:19.6]} 20. h4 {[%clk 0:02:09.4]} 20... O-O-O {[%clk 0:02:10]} 21. h5
{[%clk 0:02:08.1]} 21... Kb7 {[%clk 0:02:05.7]} 22. Be2 {[%clk 0:01:56.8]} 22...
b4 {[%clk 0:02:04.4]} 23. Bc1 {[%clk 0:01:54.8]} 23... Rhe8 {[%clk 0:01:58.7]}
24. Qf5 {[%clk 0:01:47.5]} 24... g6 {[%clk 0:01:55.6]} 25. Qf6 {[%clk
0:01:40.5]} 25... Rd7 {[%clk 0:01:49.5]} 26. hxg6 {[%clk 0:01:37.4]} 26... hxg6
{[%clk 0:01:50.4]} 27. Rh8 {[%clk 0:01:32.1]} 27... Rxh8 {[%clk 0:01:48.8]} 28.
Qxh8 {[%clk 0:01:33]} 28... Qd8 {[%clk 0:01:49.1]} 29. Qh3 {[%clk 0:01:29.5]}
29... Kc7 {[%clk 0:01:44.6]} 30. Rf1 {[%clk 0:01:26.7]} 30... Re7 {[%clk
0:01:43.7]} 31. Rf6 {[%clk 0:01:24]} 31... Qd7 {[%clk 0:01:43.8]} 32. Qf1 {[%clk
0:01:22.8]} 32... Re6 {[%clk 0:01:43.5]} 33. Rf2 {[%clk 0:01:18.4]} 33... Re8
{[%clk 0:01:39.5]} 34. Bf4 {[%clk 0:01:17.8]} 34... Re7 {[%clk 0:01:39.3]} 35.
Bg3 {[%clk 0:01:12.8]} 35... Nc6 {[%clk 0:01:36.2]} 36. Bxd6+ {[%clk 0:01:08.2]}
36... Kxd6 {[%clk 0:01:37.1]} 37. Rf6+ {[%clk 0:01:06.7]} 37... Kc7 {[%clk
0:01:37.8]} 38. Qf4+ {[%clk 0:01:05.1]} 38... Ne5 {[%clk 0:01:38.3]} 39. Kc1
{[%clk 0:00:52]} 39... Re6 {[%clk 0:01:36]} 40. Bg4 {[%clk 0:00:46.5]} 40... Qd6
{[%clk 0:01:18.1]} 41. Bxe6 {[%clk 0:00:44.6]} 41... fxe6 {[%clk 0:01:19]} 42.
Rf8 {[%clk 0:00:36.7]} 42... c4 {[%clk 0:01:18.8]} 43. dxc4 {[%clk 0:00:32.9]}
43... d3 {[%clk 0:01:19.7]} 44. b3 {[%clk 0:00:16.9]} 44... dxc2 {[%clk
0:01:08.9]} 45. Kxc2 {[%clk 0:00:17.3]} 45... axb3+ {[%clk 0:01:07.6]} 46. axb3
{[%clk 0:00:17.2]} 46... Qd3+ {[%clk 0:01:05.2]} 47. Kb2 {[%clk 0:00:16.2]}
47... Qc3+ {[%clk 0:01:05.4]} 48. Ka2 {[%clk 0:00:15.8]} 48... Qc2+ {[%clk
0:01:01.7]} 49. Ka1 {[%clk 0:00:16.2]} 49... Qc3+ {[%clk 0:01:00.2]} 50. Ka2
{[%clk 0:00:16.8]} 50... Qc2+ {[%clk 0:00:58.7]} 51. Ka1 {[%clk 0:00:17]} 51...
Qd1+ {[%clk 0:00:58.6]} 52. Ka2 {[%clk 0:00:16.6]} 52... Qe2+ {[%clk 0:00:57]}
53. Ka1 {[%clk 0:00:16.6]} 53... Qe1+ {[%clk 0:00:52.6]} 54. Kb2 {[%clk
0:00:16.6]} 54... Qe2+ {[%clk 0:00:52.1]} 55. Kb1 {[%clk 0:00:16.1]} 55... Qe1+
{[%clk 0:00:51.5]} 56. Kb2 {[%clk 0:00:16.5]} 56... Qe2+ {[%clk 0:00:43.8]} 57.
Kb1 {[%clk 0:00:16.5]} 57... Qe1+ {[%clk 0:00:43.8]} 58. Kb2 {[%clk 0:00:16.9]}
1/2-1/2

[Event "Late-Titled-Tuesday-Blitz-November-28-2023"]
[Site "Chess.com"]
[Date "2023.11.28"]
[Round "3"]
[White "noblerone"]
[Black "Gyulamiryan-koryun"]
[Result "1-0"]
[WhiteElo "2506"]
[BlackElo "1948"]
[TimeControl "180+1"]
[EndTime "14:27:17 PST"]
[Termination "noblerone won on time"]

1. e4 {[%clk 0:03:00.9]} 1... e5 {[%clk 0:02:54.7]} 2. Nf3 {[%clk 0:03:00.3]}
2... Nc6 {[%clk 0:02:53.7]} 3. Bb5 {[%clk 0:02:59]} 3... a6 {[%clk 0:02:53.8]}
4. Ba4 {[%clk 0:02:58.2]} 4... Nf6 {[%clk 0:02:52.8]} 5. d3 {[%clk 0:02:57.2]}
5... h6 {[%clk 0:02:50.7]} 6. c3 {[%clk 0:02:55.9]} 6... d6 {[%clk 0:02:35.2]}
7. Nbd2 {[%clk 0:02:53.9]} 7... Bg4 {[%clk 0:02:31.7]} 8. Nf1 {[%clk 0:02:48.3]}
8... Be7 {[%clk 0:02:27.3]} 9. Ng3 {[%clk 0:02:45.4]} 9... O-O {[%clk
0:02:26.1]} 10. h3 {[%clk 0:02:45.1]} 10... Bd7 {[%clk 0:02:25.2]} 11. O-O
{[%clk 0:02:41.3]} 11... Nd4 {[%clk 0:02:12.3]} 12. cxd4 {[%clk 0:02:39.9]}
12... Bxa4 {[%clk 0:02:11.4]} 13. Qxa4 {[%clk 0:02:40]} 13... b5 {[%clk
0:02:04.7]} 14. Qc2 {[%clk 0:02:38.5]} 14... exd4 {[%clk 0:02:02.4]} 15. Nxd4
{[%clk 0:02:36.6]} 15... c5 {[%clk 0:02:02.3]} 16. Nc6 {[%clk 0:02:36.6]} 16...
Qd7 {[%clk 0:02:01.3]} 17. Nxe7+ {[%clk 0:02:37.2]} 17... Qxe7 {[%clk
0:02:00.2]} 18. Nf5 {[%clk 0:02:37.7]} 18... Qd7 {[%clk 0:01:57.5]} 19. Re1
{[%clk 0:02:16]} 19... Rac8 {[%clk 0:01:49.4]} 20. Bf4 {[%clk 0:02:13.1]} 20...
d5 {[%clk 0:01:49.3]} 21. Be5 {[%clk 0:02:06.8]} 21... Ne8 {[%clk 0:01:33.5]}
22. Qe2 {[%clk 0:01:53.2]} 22... f6 {[%clk 0:01:29.1]} 23. Qg4 {[%clk
0:01:39.1]} 23... Kh7 {[%clk 0:00:55.4]} 24. Bg3 {[%clk 0:01:13.3]} 24... g6
{[%clk 0:00:53]} 25. Ne3 {[%clk 0:00:35.7]} 25... Qxg4 {[%clk 0:00:40]} 26. hxg4
{[%clk 0:00:32.5]} 26... d4 {[%clk 0:00:31.8]} 27. Nd5 {[%clk 0:00:32.5]} 27...
c4 {[%clk 0:00:24.5]} 28. Rac1 {[%clk 0:00:27.2]} 28... Ng7 {[%clk 0:00:16.7]}
29. Red1 {[%clk 0:00:24.2]} 29... cxd3 {[%clk 0:00:15.7]} 30. Rxc8 {[%clk
0:00:23.6]} 30... Rxc8 {[%clk 0:00:14.8]} 31. Rxd3 {[%clk 0:00:24.3]} 31... Ne6
{[%clk 0:00:05.5]} 32. Nxf6+ {[%clk 0:00:22.1]} 32... Kg7 {[%clk 0:00:02.5]} 33.
Be5 {[%clk 0:00:22.5]} 33... Kf7 {[%clk 0:00:01.7]} 34. Bxd4 {[%clk 0:00:18.7]}
1-0

[Event "Late-Titled-Tuesday-Blitz-November-28-2023"]
[Site "Chess.com"]
[Date "2023.11.28"]
[Round "3"]
[White "joppie2"]
[Black "Dinamo81"]
[Result "0-1"]
[WhiteElo "2992"]
[BlackElo "2704"]
[TimeControl "180+1"]
[EndTime "14:27:18 PST"]
[Termination "Dinamo81 won on time"]

1. b4 {[%clk 0:03:00.9]} 1... e5 {[%clk 0:02:58.5]} 2. Bb2 {[%clk 0:03:00]} 2...
Bxb4 {[%clk 0:02:59.1]} 3. Bxe5 {[%clk 0:03:00.2]} 3... Nf6 {[%clk 0:02:59.6]}
4. Nf3 {[%clk 0:02:59.4]} 4... d5 {[%clk 0:02:59.7]} 5. e3 {[%clk 0:02:59.4]}
5... O-O {[%clk 0:02:58.2]} 6. c4 {[%clk 0:02:57.9]} 6... c5 {[%clk 0:02:57.8]}
7. a3 {[%clk 0:02:55.6]} 7... Ba5 {[%clk 0:02:57.7]} 8. cxd5 {[%clk 0:02:55]}
8... Nxd5 {[%clk 0:02:56.2]} 9. Be2 {[%clk 0:02:55.1]} 9... Nc6 {[%clk 0:02:56]}
10. Bb2 {[%clk 0:02:55.3]} 10... Bg4 {[%clk 0:02:46.5]} 11. O-O {[%clk
0:02:55.6]} 11... Re8 {[%clk 0:02:44.2]} 12. d3 {[%clk 0:02:47.9]} 12... Qe7
{[%clk 0:02:34.9]} 13. Qc2 {[%clk 0:02:40.8]} 13... Rad8 {[%clk 0:02:25.5]} 14.
Nc3 {[%clk 0:02:22.3]} 14... Nf6 {[%clk 0:01:58]} 15. h3 {[%clk 0:02:18.2]}
15... Bh5 {[%clk 0:01:55.9]} 16. Nh4 {[%clk 0:02:13.7]} 16... Bxc3 {[%clk
0:01:47.2]} 17. Bxc3 {[%clk 0:01:37.2]} 17... Bxe2 {[%clk 0:01:46.7]} 18. Qxe2
{[%clk 0:01:38.1]} 18... Nd5 {[%clk 0:01:43.7]} 19. Nf5 {[%clk 0:01:36.9]} 19...
Qg5 {[%clk 0:01:44.2]} 20. Bxg7 {[%clk 0:01:34.7]} 20... Qxf5 {[%clk 0:01:41]}
21. Bb2 {[%clk 0:01:33]} 21... Qg6 {[%clk 0:01:28.2]} 22. Qc2 {[%clk 0:01:27.3]}
22... Ne5 {[%clk 0:01:16.5]} 23. Rad1 {[%clk 0:01:25.1]} 23... Nf3+ {[%clk
0:01:12.8]} 24. Kh1 {[%clk 0:01:25.3]} 24... Nh4 {[%clk 0:01:13.2]} 25. Rg1
{[%clk 0:01:23.7]} 25... b6 {[%clk 0:01:06.4]} 26. Qc4 {[%clk 0:01:23.5]} 26...
Qh5 {[%clk 0:00:54.1]} 27. d4 {[%clk 0:01:19.3]} 27... Nf6 {[%clk 0:00:45.5]}
28. Rdf1 {[%clk 0:01:11]} 28... Ne4 {[%clk 0:00:42.6]} 29. Qc2 {[%clk
0:01:00.7]} 29... Rd6 {[%clk 0:00:34.1]} 30. dxc5 {[%clk 0:00:59.6]} 30... bxc5
{[%clk 0:00:35]} 31. Ba1 {[%clk 0:00:57.1]} 31... Rg6 {[%clk 0:00:24.3]} 32. Qb2
{[%clk 0:00:57.7]} 32... Kf8 {[%clk 0:00:23.7]} 33. Rd1 {[%clk 0:00:20.2]} 33...
Nxg2 {[%clk 0:00:20.3]} 34. Kh2 {[%clk 0:00:10.6]} 34... Ng5 {[%clk 0:00:19.4]}
35. Qh8+ {[%clk 0:00:09.4]} 35... Rg8 {[%clk 0:00:18.9]} 36. Bg7+ {[%clk
0:00:08.6]} 36... Ke7 {[%clk 0:00:19]} 37. Bf6+ {[%clk 0:00:09.2]} 37... Ke6
{[%clk 0:00:19.4]} 0-1